bitfinex/quotes_SOLUSD_20230404
["timestamp","ask_amount","ask_price","bid_price","bid_amount"]
[1680595550272,17.0,20.522,20.51,22.45]
[1680595567282,20.0,20.523,20.51,22.45]
[1680595567489,17.0,20.522,20.51,22.45]
[1680595567785,17.0,20.523,20.51,22.45]
[1680595600822,20.0,20.524,20.51,22.45]
[1680595601010,20.0,20.523,20.51,22.45]
[1680595602519,20.0,20.524,20.51,22.45]
[1680595602720,17.0,20.523,20.51,22.45]
[1680595606727,17.0,20.523,20.504,134.7183]
[1680595607332,17.0,20.523,20.504,190.29372795]
[1680595607537,17.0,20.523,20.505,20.0]
[1680595607838,17.0,20.523,20.506,17.0]
[1680595612033,17.0,20.523,20.51,22.48]
[1680595617840,20.0,20.522,20.51,22.48]
[1680595619442,37.0,20.523,20.51,22.48]
[1680595621046,17.0,20.523,20.51,22.48]
[1680595632450,17.0,20.523,20.504,190.29372795]
[1680595633143,20.0,20.522,20.504,190.29372795]
[1680595633344,17.0,20.521,20.504,190.29372795]
[1680595633737,20.0,20.52,20.504,190.29372795]
[1680595633932,17.0,20.519,20.504,190.29372795]
[1680595634748,17.0,20.519,20.504,170.78572795]
[1680595634950,20.0,20.518,20.504,115.2103]
[1680595635247,37.0,20.517,20.504,115.2103]
[1680595635452,20.0,20.516,20.504,115.2103]
[1680595635941,20.0,20.515,20.504,115.2103]
[1680595636151,20.0,20.514,20.504,115.2103]
[1680595636734,22.63,20.52,20.504,115.2103]
[1680595636940,109.5609,20.537,20.505,20.0]
[1680595636941,22.63,20.53,20.505,20.0]
[1680595637139,17.0,20.521,20.505,20.0]
[1680595637352,41.01808669,20.527,20.505,20.0]
[1680595637644,41.01808669,20.527,20.505,75.57542795]
[1680595637847,17.0,20.522,20.506,17.0]
[1680595638341,17.0,20.522,20.506,72.57542795]
[1680595642150,17.0,20.522,20.51,22.45]
[1680595646639,17.0,20.522,20.506,55.57542795]
[1680595646839,17.0,20.522,20.504,115.2103]
[1680595647656,20.0,20.521,20.504,115.2103]
[1680595647860,17.0,20.52,20.504,115.2103]
[1680595652754,20.0,20.519,20.504,115.2103]
[1680595652961,17.0,20.518,20.504,115.2103]
[1680595655867,17.0,20.52,20.504,115.2103]
[1680595662168,39.63,20.52,20.504,115.2103]
[1680595665359,20.0,20.519,20.504,115.2103]
[1680595665574,17.0,20.518,20.504,115.2103]
[1680595666850,17.0,20.519,20.504,115.2103]
[1680595669572,20.0,20.518,20.504,115.2103]
[1680595672462,17.0,20.519,20.504,115.2103]
[1680595674671,20.0,20.518,20.504,115.2103]
[1680595677579,22.63,20.52,20.505,19.507]
[1680595677874,22.63,20.53,20.506,17.0]
[1680595678074,20.0,20.525,20.508,19.503]
[1680595678466,20.0,20.525,20.509,20.0]
[1680595678777,20.0,20.525,20.508,19.503]
[1680595678977,17.0,20.524,20.508,19.503]
[1680595679178,20.0,20.523,20.508,19.503]
[1680595682083,20.0,20.523,20.51,22.45]
[1680595687386,20.0,20.523,20.51,22.45]
[1680595688891,17.0,20.522,20.51,22.45]
[1680595689486,17.0,20.522,20.504,131.3261]
[1680595689487,20.0,20.521,20.504,131.3261]
[1680595689695,17.0,20.52,20.504,131.3261]
[1680595690188,20.0,20.519,20.504,131.3261]
[1680595694689,17.0,20.518,20.504,131.3261]
[1680595695700,17.0,20.519,20.504,131.3261]
[1680595695892,20.0,20.518,20.504,131.3261]
[1680595696486,17.0,20.519,20.504,131.3261]
[1680595696687,22.63,20.52,20.504,131.3261]
[1680595700199,20.0,20.519,20.504,131.3261]
[1680595702900,17.0,20.518,20.504,131.3261]
[1680595710300,20.0,20.519,20.504,131.3261]
[1680595710511,41.01808669,20.529,20.504,131.3261]
[1680595710809,20.0,20.525,20.51,22.45]
[1680595711010,20.0,20.525,20.511,17.0]
[1680595711302,20.0,20.525,20.513,19.499]
[1680595711803,20.0,20.525,20.514,17.0]
[1680595712192,20.0,20.525,20.513,19.499]
[1680595717608,20.0,20.525,20.51,22.45]
[1680595717906,20.0,20.525,20.511,17.0]
[1680595744625,20.0,20.524,20.51,22.45]
[1680595744923,20.0,20.523,20.51,22.45]
[1680595745607,20.0,20.524,20.51,22.45]
[1680595749723,40.0,20.525,20.51,22.45]
[1680595750131,20.0,20.525,20.51,22.45]
[1680595750334,37.0,20.524,20.51,22.45]
[1680595750631,20.0,20.523,20.51,22.45]
[1680595755330,20.0,20.521,20.51,22.45]
[1680595755530,20.0,20.523,20.51,22.45]
[1680595757744,20.0,20.521,20.51,22.45]
[1680595758244,20.0,20.523,20.51,22.45]
[1680595759941,20.0,20.524,20.51,22.45]
[1680595766228,20.0,20.522,20.505,20.0]
[1680595766642,17.0,20.523,20.505,20.0]
[1680595766947,20.0,20.524,20.505,20.0]
[1680595767348,17.0,20.523,20.506,17.0]
[1680595767550,17.0,20.523,20.507,20.0]
[1680595772053,17.0,20.523,20.51,22.45]
[1680595776456,20.0,20.522,20.504,111.8181]
[1680595776636,20.0,20.52,20.504,111.8181]
[1680595776834,17.0,20.519,20.504,111.8181]
[1680595779354,20.0,20.522,20.504,111.8181]
[1680595779543,17.0,20.521,20.504,111.8181]
[1680595781954,17.0,20.521,20.505,17.0]
[1680595782162,17.0,20.523,20.506,20.0]
[1680595790271,20.0,20.524,20.507,17.0]
[1680595792968,20.0,20.523,20.507,17.0]
[1680595793169,17.0,20.522,20.506,17.0]
[1680595794169,17.0,20.522,20.51,22.48]
[1680595797652,17.0,20.523,20.51,22.48]
[1680595799869,20.0,20.522,20.51,22.48]
[1680595800379,17.0,20.521,20.51,22.48]
[1680595802072,17.0,20.521,20.505,20.0]
[1680595803178,17.0,20.521,20.504,131.3251]
[1680595803368,17.0,20.521,20.505,17.0]
[1680595804072,17.0,20.521,20.506,20.0]
[1680595804474,17.0,20.521,20.505,37.0]
[1680595805355,17.0,20.522,20.506,20.0]
[1680595807371,20.0,20.524,20.507,19.504]
[1680595807558,20.0,20.524,20.51,22.48]
[1680595808570,20.0,20.524,20.511,17.0]
[1680595808761,20.0,20.525,20.511,17.0]
[1680595811176,40.0,20.525,20.51,41.981]
[1680595811883,17.0,20.524,20.51,41.981]
[1680595812060,20.0,20.523,20.51,41.981]
[1680595817478,20.0,20.523,20.51,22.48]
[1680595819782,20.0,20.522,20.506,19.506]
[1680595819965,37.0,20.522,20.506,19.506]
[1680595822582,22.63,20.52,20.504,111.8181]
[1680595822775,37.0,20.519,20.504,111.8181]
[1680595822972,20.0,20.518,20.504,111.8181]
[1680595823178,37.0,20.517,20.504,111.8181]
[1680595823578,20.0,20.516,20.504,111.8181]
[1680595823777,20.0,20.515,20.504,111.8181]
[1680595826692,20.0,20.516,20.504,111.8181]
[1680595833396,20.0,20.523,20.504,111.8181]
[1680595833591,17.0,20.519,20.504,111.8181]
[1680595833789,20.0,20.518,20.504,111.8181]
[1680595833991,17.0,20.517,20.504,111.8181]
[1680595834501,17.0,20.517,20.5,22.45]
[1680595834697,20.0,20.516,20.5,22.45]
[1680595835499,20.0,20.515,20.5,22.45]
[1680595835691,20.0,20.514,20.5,22.45]
[1680595835890,20.0,20.513,20.5,22.45]
[1680595838309,20.0,20.515,20.5,22.45]
[1680595839899,20.0,20.516,20.5,22.45]
[1680595842507,20.0,20.517,20.5,22.45]
[1680595842999,20.0,20.517,20.504,113.924]
[1680595845811,17.0,20.516,20.504,113.924]
[1680595846012,40.0,20.515,20.504,113.924]
[1680595848717,20.0,20.515,20.504,113.924]
[1680595849306,20.0,20.517,20.504,113.924]
[1680595849506,37.0,20.516,20.504,113.924]
[1680595849706,20.0,20.515,20.504,113.924]
[1680595857829,20.0,20.514,20.504,113.924]
[1680595858728,20.0,20.515,20.504,113.924]
[1680595864833,17.0,20.514,20.504,113.924]
[1680595865031,20.0,20.513,20.504,113.924]
[1680595865236,17.0,20.512,20.504,113.924]
[1680595867829,20.0,20.515,20.504,113.924]
[1680595868133,20.0,20.514,20.504,113.924]
[1680595868630,20.0,20.516,20.504,113.924]
[1680595868831,37.0,20.515,20.504,113.924]
[1680595886943,51.56000167,20.515,20.504,113.924]
[1680595896755,51.56000167,20.515,20.497,124.37514468]
[1680595896936,20.0,20.514,20.497,14.31164468]
[1680595897137,17.0,20.513,20.492,43.08585104]
[1680595897450,17.0,20.513,20.494,20.0]
[1680595902452,17.0,20.513,20.493,130.3142]
[1680595902656,17.0,20.513,20.495,43.08585104]
[1680595906752,22.63,20.51,20.493,130.3142]
[1680595906956,17.0,20.509,20.493,130.3142]
[1680595920467,22.63,20.51,20.493,130.3142]
[1680595920667,22.63,20.51,20.493,173.40005104]
[1680595920967,22.63,20.51,20.494,20.0]
[1680595921372,22.63,20.51,20.496,19.515]
[1680595921969,22.63,20.51,20.498,20.0]
[1680595922271,20.0,20.514,20.497,43.08585104]
[1680595925377,17.0,20.513,20.497,43.08585104]
[1680595927578,17.0,20.513,20.496,19.515]
[1680595932082,17.0,20.513,20.5,22.48]
[1680595937374,17.0,20.513,20.493,130.3142]
[1680595937571,20.0,20.512,20.494,17.0]
[1680595937771,17.0,20.511,20.495,20.0]
[1680595940481,20.0,20.51,20.495,20.0]
[1680595940679,17.0,20.509,20.495,20.0]
[1680595943983,17.0,20.511,20.495,20.0]
[1680595949188,20.0,20.51,20.495,20.0]
[1680595949376,17.0,20.509,20.495,20.0]
[1680595955792,17.0,20.509,20.494,20.0]
[1680595956185,20.0,20.508,20.494,20.0]
[1680595956385,17.0,20.507,20.494,20.0]
[1680595960499,17.0,20.509,20.494,20.0]
[1680595969891,40.0,20.508,20.49,36.96848329]
[1680595970085,20.0,20.506,20.49,14.48848329]
[1680595970285,20.0,20.505,20.487,19.524]
[1680595970688,20.0,20.504,20.487,19.524]
[1680595971090,130.6732,20.504,20.487,19.524]
[1680595971585,130.6732,20.504,20.487,34.21456612]
[1680595972197,130.6732,20.504,20.487,14.69056612]
[1680595972497,20.0,20.502,20.482,132.2691]
[1680595972703,17.0,20.501,20.483,20.0]
[1680595972898,20.0,20.5,20.483,20.0]
[1680595973112,17.0,20.499,20.483,20.0]
[1680595979709,42.63,20.5,20.483,20.0]
[1680595979909,17.0,20.499,20.484,17.0]
[1680595980110,17.0,20.499,20.485,20.0]
[1680595981612,20.0,20.502,20.485,20.0]
[1680595981813,17.0,20.501,20.485,20.0]
[1680595982110,17.0,20.501,20.485,39.525]
[1680595982314,17.0,20.501,20.486,17.0]
[1680595985004,17.0,20.501,20.485,39.525]
[1680595990719,20.0,20.5,20.485,39.525]
[1680595991022,17.0,20.499,20.485,39.525]
[1680595993898,20.0,20.5,20.485,39.525]
[1680595995815,20.0,20.5,20.485,39.025]
[1680595996721,20.0,20.502,20.485,39.025]
[1680595997125,17.0,20.501,20.485,39.025]
[1680596003429,17.0,20.501,20.485,19.525]
[1680596005726,17.0,20.503,20.485,19.525]
[1680596007629,24.3050432,20.503,20.485,19.525]
[1680596011830,20.0,20.502,20.485,19.525]
[1680596012028,17.0,20.501,20.485,19.525]
[1680596015133,20.0,20.499,20.485,19.525]
[1680596016137,22.63,20.5,20.485,19.525]
[1680596025346,17.0,20.501,20.485,19.525]
[1680596026242,22.63,20.5,20.482,126.61818396]
[1680596026543,20.0,20.498,20.482,126.61818396]
[1680596026845,20.0,20.497,20.482,126.61818396]
[1680596027729,20.0,20.497,20.483,17.0]
[1680596031841,7.3050432,20.498,20.484,20.0]
[1680596032049,27.305043,20.499,20.484,20.0]
[1680596032230,17.0,20.498,20.484,20.0]
[1680596033436,20.0,20.497,20.484,20.0]
[1680596033734,17.0,20.498,20.484,20.0]
[1680596037456,17.0,20.498,20.483,20.0]
[1680596042764,27.305043,20.499,20.484,17.0]
[1680596042956,27.305043,20.499,20.485,20.0]
[1680596043445,22.63,20.5,20.485,20.0]
[1680596043641,17.0,20.499,20.485,20.0]
[1680596044058,37.0,20.499,20.485,20.0]
[1680596047366,110.2283,20.501,20.488,19.523]
[1680596047656,20.0,20.502,20.492,19.519]
[1680596048367,20.0,20.502,20.493,37.0]
[1680596048550,20.0,20.502,20.495,19.516]
[1680596048871,20.0,20.502,20.496,17.0]
[1680596050061,20.0,20.502,20.497,20.0]
[1680596050257,20.0,20.502,20.498,17.0]
[1680596050467,20.0,20.502,20.498,36.513]
[1680596059258,20.0,20.502,20.493,39.518]
[1680596059457,20.0,20.502,20.494,37.0]
[1680596059848,20.0,20.502,20.495,20.0]
[1680596060055,20.0,20.502,20.496,17.0]
[1680596060454,20.0,20.502,20.495,20.0]
[1680596065175,20.0,20.502,20.494,20.0]
[1680596065362,20.0,20.502,20.495,17.0]
[1680596066976,20.0,20.514,20.495,17.0]
[1680596067181,17.0,20.513,20.496,20.0]
[1680596067377,20.0,20.512,20.496,20.0]
[1680596067558,17.0,20.511,20.496,20.0]
[1680596067872,20.0,20.51,20.496,20.0]
[1680596068576,20.0,20.51,20.495,17.0]
[1680596071071,17.0,20.511,20.496,20.0]
[1680596074773,17.0,20.511,20.494,20.0]
[1680596074982,20.0,20.509,20.494,20.0]
[1680596075180,17.0,20.508,20.494,20.0]
[1680596083390,17.0,20.508,20.493,14.69408967]
[1680596083391,7.15481998,20.507,20.493,14.69408967]
[1680596083688,20.0,20.505,20.491,19.52]
[1680596092384,20.0,20.505,20.487,58.572]
[1680596092586,20.0,20.505,20.489,17.0]
[1680596093185,118.5673,20.504,20.489,17.0]
[1680596093874,20.0,20.503,20.489,17.0]
[1680596094074,20.0,20.503,20.488,17.0]
[1680596095703,118.5673,20.504,20.488,17.0]
[1680596097204,20.0,20.503,20.488,17.0]
[1680596099496,17.0,20.502,20.484,20.0]
[1680596099682,17.0,20.502,20.485,20.0]
[1680596100893,17.0,20.502,20.486,17.0]
[1680596103490,20.0,20.501,20.486,17.0]
[1680596104398,17.0,20.502,20.486,17.0]
[1680596105502,20.0,20.501,20.486,17.0]
[1680596106006,20.0,20.501,20.485,20.0]
[1680596106189,17.0,20.5,20.484,20.0]
[1680596106588,20.0,20.499,20.484,20.0]
[1680596106789,17.0,20.498,20.484,20.0]
[1680596110703,7.15481998,20.502,20.486,19.524]
[1680596111091,20.0,20.503,20.486,19.524]
[1680596112095,20.0,20.501,20.486,19.524]
[1680596112299,17.0,20.5,20.486,19.524]
[1680596118895,20.0,20.503,20.486,19.524]
[1680596119394,20.0,20.501,20.486,19.524]
[1680596119594,17.0,20.5,20.486,19.524]
[1680596120107,20.0,20.501,20.486,19.524]
[1680596125109,20.0,20.503,20.487,17.0]
[1680596132217,20.0,20.503,20.49,22.68]
[1680596135221,132.90757263,20.504,20.49,22.68]
[1680596135426,17.0,20.503,20.49,22.68]
[1680596135626,37.0,20.503,20.49,22.68]
[1680596136705,17.0,20.503,20.49,22.68]
[1680596136904,37.0,20.503,20.49,22.68]
[1680596138103,17.0,20.503,20.49,22.68]
[1680596140823,37.0,20.503,20.49,22.68]
[1680596141027,140.06239261,20.504,20.49,22.68]
[1680596144607,132.90757263,20.504,20.491,17.0]
[1680596145213,132.90757263,20.504,20.492,20.0]
[1680596145415,132.90757263,20.504,20.493,17.0]
[1680596146326,132.90757263,20.504,20.491,17.0]
[1680596151218,118.5673,20.504,20.491,17.0]
[1680596161130,20.0,20.512,20.504,0.11235444]
[1680596166247,19.88506665,20.512,20.504,0.11235444]
[1680596170053,109.0856,20.514,20.504,0.11235444]
[1680596170458,116.24292746,20.514,20.504,0.11235444]
[1680596171353,116.24292746,20.514,20.504,0.04414238]
[1680596171650,109.0856,20.514,20.504,0.04414238]
[1680596173634,20.0,20.513,20.504,0.04414238]
[1680596173837,109.0856,20.514,20.504,0.04414238]
[1680596174855,20.0,20.513,20.504,0.04414238]
[1680596177256,109.0856,20.514,20.504,0.04414238]
[1680596177451,20.0,20.513,20.504,0.04414238]
[1680596177658,109.0856,20.514,20.504,0.04414238]
[1680596177955,20.0,20.513,20.504,0.04414238]
[1680596179457,109.0856,20.514,20.504,0.04414238]
[1680596179657,20.0,20.513,20.504,0.04414238]
[1680596179862,109.0856,20.514,20.504,0.04414238]
[1680596180157,20.0,20.513,20.504,0.04414238]
[1680596180660,109.0856,20.514,20.504,0.04414238]
[1680596181146,20.0,20.513,20.504,0.04414238]
[1680596181559,109.0856,20.514,20.504,0.04414238]
[1680596181766,20.0,20.513,20.504,0.04414238]
[1680596182561,109.0856,20.514,20.504,0.04414238]
[1680596183461,20.0,20.513,20.504,0.04414238]
[1680596183661,109.0856,20.514,20.5,28.3]
[1680596183864,109.0856,20.514,20.501,17.0]
[1680596195574,20.0,20.513,20.501,17.0]
[1680596196480,109.0856,20.514,20.501,17.0]
[1680596203282,20.0,20.513,20.5,28.3]
[1680596203483,20.0,20.513,20.501,17.0]
[1680596203780,109.0856,20.514,20.501,17.0]
[1680596207686,20.0,20.513,20.501,17.0]
[1680596208887,20.0,20.513,20.5,28.3]
[1680596212078,20.0,20.513,20.497,14.42514945]
[1680596212278,109.0856,20.514,20.498,17.0]
[1680596212480,109.0856,20.514,20.497,20.0]
[1680596212689,109.0856,20.514,20.498,17.0]
[1680596226196,20.0,20.513,20.498,17.0]
[1680596227307,20.0,20.513,20.5,22.65]
[1680596228608,109.0856,20.514,20.5,22.65]
[1680596229607,109.0856,20.514,20.501,17.0]
[1680596236216,20.0,20.513,20.501,17.0]
[1680596239513,109.0856,20.514,20.501,17.0]
[1680596259016,115.7151,20.515,20.501,17.0]
[1680596259323,115.7151,20.515,20.51,22.65]
[1680596264015,115.7151,20.515,20.502,58.6633681]
[1680596264215,115.7151,20.515,20.503,37.0]
[1680596264410,115.7151,20.515,20.504,17.0]
[1680596264716,115.7151,20.515,20.505,20.0]
[1680596274433,20.0,20.514,20.5,22.65]
[1680596284040,115.7151,20.515,20.5,22.65]
[1680596284223,115.7151,20.515,20.501,17.0]
[1680596287241,20.0,20.514,20.501,17.0]
[1680596288439,20.0,20.514,20.5,22.65]
[1680596288824,20.0,20.514,20.501,17.0]
[1680596291548,20.0,20.514,20.5,22.65]
[1680596296245,17.0,20.513,20.495,14.270514]
[1680596296427,20.0,20.512,20.494,51.3576492]
[1680596296628,17.0,20.511,20.495,20.0]
[1680596296841,20.0,20.51,20.495,20.0]
[1680596297638,20.0,20.512,20.496,17.0]
[1680596298349,20.0,20.512,20.496,68.3576492]
[1680596299247,20.0,20.512,20.5,22.65]
[1680596302052,20.0,20.512,20.496,17.0]
[1680596313555,20.0,20.51,20.496,17.0]
[1680596315853,20.0,20.51,20.495,20.0]
[1680596315854,17.0,20.509,20.495,20.0]
[1680596316354,20.0,20.508,20.495,20.0]
[1680596318865,17.0,20.507,20.495,20.0]
[1680596319046,20.0,20.506,20.495,20.0]
[1680596319447,20.0,20.506,20.494,14.57930086]
[1680596319658,20.0,20.506,20.49,22.65]
[1680596319954,17.0,20.505,20.49,22.65]
[1680596320153,20.0,20.504,20.49,22.65]
[1680596320953,132.2124,20.504,20.49,22.65]
[1680596321550,20.0,20.502,20.49,22.65]
[1680596322653,20.0,20.502,20.49,37.49952593]
[1680596324844,20.0,20.502,20.491,17.0]
[1680596326764,20.0,20.502,20.49,37.49952593]
[1680596329271,20.0,20.502,20.49,22.65]
[1680596331565,20.0,20.502,20.488,14.59764688]
[1680596331766,20.0,20.5,20.485,21.98039381]
[1680596331970,20.0,20.5,20.486,37.0]
[1680596335065,42.44,20.5,20.486,20.0]
[1680596335256,17.0,20.499,20.485,20.0]
[1680596335853,42.44,20.5,20.485,20.0]
[1680596336363,17.0,20.499,20.485,20.0]
[1680596337061,20.0,20.498,20.485,20.0]
[1680596337264,17.0,20.497,20.485,20.0]
[1680596339861,20.0,20.496,20.484,21.98146687]
[1680596340170,37.0,20.495,20.484,21.98146687]
[1680596345973,20.0,20.495,20.484,21.98146687]
[1680596346352,17.0,20.494,20.484,21.98146687]
[1680596346556,20.0,20.493,20.484,21.98146687]
[1680596346771,17.0,20.492,20.484,21.98146687]
[1680596348859,20.0,20.493,20.484,21.98146687]
[1680596349359,17.0,20.492,20.484,21.98146687]
[1680596361076,34.76678293,20.495,20.484,21.98146687]
[1680596361791,17.0,20.494,20.484,21.98146687]
[1680596365080,20.0,20.493,20.484,21.98146687]
[1680596365977,17.0,20.492,20.484,21.98146687]
[1680596377488,20.0,20.491,20.484,21.98146687]
[1680596377795,17.0,20.49,20.484,21.98146687]
[1680596383183,20.0,20.491,20.484,21.98146687]
[1680596387000,20.0,20.494,20.484,21.98146687]
[1680596387190,17.0,20.493,20.484,21.98146687]
[1680596387600,20.0,20.494,20.484,21.98146687]
[1680596388895,20.0,20.493,20.484,21.98146687]
[1680596389202,20.0,20.494,20.484,21.98146687]
[1680596391698,20.0,20.496,20.484,21.98146687]
[1680596391897,17.0,20.495,20.484,21.98146687]
[1680596392104,20.0,20.496,20.484,21.98146687]
[1680596392290,17.0,20.495,20.484,21.98146687]
[1680596392496,20.0,20.494,20.484,21.98146687]
[1680596396212,17.0,20.493,20.484,21.98146687]
[1680596402697,20.0,20.492,20.484,21.98146687]
[1680596402906,17.0,20.491,20.484,21.98146687]
[1680596403906,22.7,20.49,20.484,21.98146687]
[1680596404103,17.0,20.489,20.484,21.98146687]
[1680596407100,20.0,20.488,20.471,117.6313]
[1680596407410,17.0,20.487,20.471,117.6313]
[1680596407713,20.0,20.486,20.471,117.6313]
[1680596407922,37.0,20.485,20.471,117.6313]
[1680596412714,20.0,20.486,20.471,117.6313]
[1680596412906,20.0,20.488,20.472,17.0]
[1680596413109,20.0,20.488,20.473,20.0]
[1680596413312,48.31,20.49,20.474,20.0]
[1680596414620,48.31,20.49,20.474,27.3050432]
[1680596415209,20.0,20.488,20.474,27.3050432]
[1680596417020,20.0,20.488,20.474,20.0]
[1680596417521,20.0,20.488,20.473,20.0]
[1680596421927,17.0,20.489,20.475,20.0]
[1680596423026,17.0,20.489,20.473,20.0]
[1680596438636,48.31,20.49,20.473,20.0]
[1680596438839,48.31,20.49,20.475,19.535]
[1680596439028,48.31,20.49,20.476,20.0]
[1680596441638,20.0,20.49,20.476,20.0]
[1680596443745,20.0,20.488,20.476,20.0]
[1680596444429,17.0,20.487,20.476,20.0]
[1680596444945,20.0,20.486,20.476,20.0]
[1680596445146,17.0,20.485,20.476,20.0]
[1680596445331,17.0,20.485,20.451,599.71731557]
[1680596445332,17.0,20.485,20.47,42.37284178]
[1680596445534,17.0,20.485,20.467,108.2557]
[1680596445732,5.96412373,20.484,20.463,39.547]
[1680596445940,17.0,20.483,20.463,39.547]
[1680596446239,37.0,20.483,20.463,39.547]
[1680596446648,17.0,20.483,20.463,39.547]
[1680596446856,17.0,20.483,20.464,37.0]
[1680596447344,17.0,20.483,20.465,20.0]
[1680596447644,17.0,20.483,20.466,17.0]
[1680596447849,20.0,20.482,20.467,20.0]
[1680596448033,111.6926,20.482,20.467,20.0]
[1680596448242,111.6926,20.482,20.468,17.0]
[1680596449556,111.6926,20.482,20.467,20.0]
[1680596449739,20.0,20.481,20.465,20.0]
[1680596450041,20.0,20.481,20.466,17.0]
[1680596450249,20.0,20.481,20.467,20.0]
[1680596451849,17.0,20.48,20.467,20.0]
[1680596452051,20.0,20.481,20.464,20.0]
[1680596452251,17.0,20.48,20.464,20.0]
[1680596452552,19.93858514,20.479,20.464,20.0]
[1680596453551,19.93858514,20.479,20.465,17.0]
[1680596453732,19.93858514,20.479,20.466,20.0]
[1680596456247,20.0,20.481,20.466,20.0]
[1680596456550,20.0,20.481,20.467,17.0]
[1680596456755,111.6926,20.482,20.467,17.0]
[1680596457055,20.0,20.481,20.467,17.0]
[1680596458356,20.0,20.481,20.466,20.0]
[1680596458654,20.0,20.481,20.464,20.0]
[1680596458855,20.0,20.481,20.465,17.0]
[1680596459046,20.0,20.481,20.466,20.0]
[1680596459360,17.0,20.48,20.466,20.0]
[1680596459560,45.4,20.48,20.466,20.0]
[1680596459743,20.0,20.479,20.464,20.0]
[1680596459942,37.0,20.478,20.46,155.35016343]
[1680596460354,37.0,20.478,20.46,127.21016343]
[1680596460648,20.0,20.477,20.46,127.21016343]
[1680596460860,17.0,20.476,20.46,127.21016343]
[1680596461164,20.0,20.475,20.46,127.21016343]
[1680596461838,20.0,20.478,20.46,155.61016343]
[1680596462045,20.0,20.478,20.46,162.91520663]
[1680596462256,111.6926,20.482,20.461,17.0]
[1680596462571,20.0,20.481,20.463,20.0]
[1680596462767,20.0,20.481,20.464,20.0]
[1680596463067,20.0,20.481,20.464,37.0]
[1680596463245,20.0,20.481,20.464,20.0]
[1680596463441,20.0,20.481,20.461,20.0]
[1680596463643,20.0,20.479,20.461,20.0]
[1680596463864,17.0,20.478,20.461,20.0]
[1680596464170,17.0,20.478,20.462,7.3050432]
[1680596464352,17.0,20.478,20.463,20.0]